bitfinex-derivatives/quotes_SOLF0:USTF0_20250424
["timestamp","ask_amount","ask_price","bid_price","bid_amount"]
[1745454584423,6.6567,150.17,150.14,1.9441]
[1745454584721,11.52225244,150.21,150.13,26.2]
[1745454584919,11.52225244,150.19,150.1,28.2546]
[1745454585122,6.6571,150.16,150.12,6.6582]
[1745454586726,26.2,150.18,150.1,28.2546]
[1745454586727,6.6564,150.17,150.13,6.658]
[1745454586926,26.2,150.18,150.11,11.52225244]
[1745454587120,41.60775244,150.21,150.11,11.52225244]
[1745454588125,41.60775244,150.21,150.15,6.6571]
[1745454588126,6.6558,150.19,150.15,6.6571]
[1745454588326,41.60775244,150.21,150.15,6.6571]
[1745454589426,11.52225244,150.19,150.15,6.6571]
[1745454589725,11.52225244,150.19,150.14,6.6574]
[1745454590533,6.6566,150.17,150.14,6.6574]
[1745454591629,6.6567,150.16,150.14,6.6574]
[1745454591826,6.6567,150.16,150.13,6.658]
[1745454592229,6.6572,150.15,150.1,28.2546]
[1745454592529,37.72225244,150.17,150.1,28.2546]
[1745454592728,2.035,150.16,150.1,28.2546]
[1745454592931,2.035,150.16,150.1,26.2]
[1745454593234,6.6577,150.14,150.11,6.6586]
[1745454596036,6.6574,150.15,150.12,6.6585]
[1745454598137,6.6576,150.14,150.11,6.6587]
[1745454598336,11.52225244,150.15,150.07,26.2]
[1745454598836,6.6579,150.14,150.1,6.6591]
[1745454599135,11.52225244,150.15,150.07,26.2]
[1745454599331,28.255,150.16,150.07,26.2]
[1745454599532,34.9119,150.16,150.12,6.6582]
[1745454599832,34.9119,150.16,150.08,11.52225244]
[1745454600130,2.035,150.16,150.1,11.52225244]
[1745454600437,26.22,150.19,150.12,11.52225244]
[1745454600631,37.74225244,150.19,150.14,6.6573]
[1745454600838,37.74225244,150.19,150.12,26.22]
[1745454601135,6.656,150.18,150.14,6.6576]
[1745454601435,11.52225244,150.17,150.09,26.22]
[1745454601840,6.6568,150.16,150.12,6.6585]
[1745454602338,6.6572,150.15,150.12,6.6585]
[1745454603234,11.52225244,150.17,150.12,6.6585]
[1745454603437,6.657,150.16,150.12,6.6585]
[1745454603635,11.52225244,150.17,150.12,6.6585]
[1745454603835,6.6574,150.15,150.12,6.6585]
[1745454604433,11.52225244,150.17,150.09,32.8796]
[1745454604738,11.52225244,150.15,150.06,29.7203]
[1745454605043,6.6588,150.12,150.08,6.6599]
[1745454605537,27.7224,150.14,150.08,6.6599]
[1745454605837,6.659,150.11,150.08,6.6599]
[1745454606044,27.7224,150.14,150.07,6.6606]
[1745454606335,11.52225244,150.13,150.07,6.6606]
[1745454606937,6.6592,150.11,150.07,6.6606]
[1745454607640,6.6596,150.1,150.07,6.6606]
[1745454608341,6.6591,150.11,150.07,6.6606]
[1745454609442,6.6591,150.11,150.08,6.6602]
[1745454609742,6.6587,150.12,150.08,6.6602]
[1745454609942,1.9024,150.14,150.06,29.7203]
[1745454610146,1.9024,150.14,150.07,11.52225244]
[1745454610339,8.5602,150.14,150.07,11.52225244]
[1745454610546,25.82,150.19,150.09,11.52225244]
[1745454610843,27.8311,150.19,150.1,25.82]
[1745454611044,11.52225244,150.18,150.12,6.6584]
[1745454611939,6.657,150.16,150.12,6.6584]
[1745454612443,11.52225244,150.18,150.12,6.6584]
[1745454612647,11.52225244,150.16,150.1,25.82]
[1745454612942,11.52225244,150.16,150.07,25.82]
[1745454613342,11.52225244,150.14,150.07,25.82]
[1745454613537,1.9065,150.13,150.07,25.82]
[1745454613938,1.9065,150.13,150.09,6.6598]
[1745454614147,1.9065,150.13,150.07,25.82]
[1745454614341,11.52225244,150.12,150.07,25.82]
[1745454614547,6.6591,150.11,150.06,2.0366]
[1745454615046,6.6591,150.11,150.08,6.6599]
[1745454615344,1.9065,150.13,150.06,2.0366]
[1745454615546,37.34225244,150.18,150.12,6.6583]
[1745454615742,6.6575,150.15,150.12,6.6583]
[1745454616848,11.52225244,150.16,150.08,25.82]
[1745454617547,6.6584,150.13,150.1,6.6591]
[1745454617948,6.6586,150.12,150.1,6.6591]
[1745454618648,6.6586,150.12,150.09,6.6597]
[1745454618846,6.659,150.11,150.08,25.82]
[1745454619045,11.52225244,150.14,150.08,25.82]
[1745454619248,6.6588,150.12,150.09,6.6598]
[1745454621550,6.6588,150.12,150.1,6.6593]
[1745454621754,6.6582,150.13,150.1,6.6593]
[1745454621948,11.52225244,150.14,150.09,6.6596]
[1745454622249,6.6586,150.12,150.09,6.6596]
[1745454623052,6.6589,150.11,150.09,6.6596]
[1745454623551,11.52225244,150.12,150.06,2.0366]
[1745454623850,6.6601,150.09,150.06,2.0366]
[1745454624455,6.6601,150.09,150.06,8.6975]
[1745454626559,6.6596,150.1,150.07,6.6606]
[1745454627257,6.6591,150.11,150.06,2.0366]
[1745454627458,11.52225244,150.12,150.06,2.0366]
[1745454627958,11.52225244,150.12,150.05,25.82]
[1745454628351,6.6596,150.1,150.06,6.6609]
[1745454629157,11.52225244,150.1,149.99,3.9436]
[1745454629356,11.52225244,150.08,150.0,25.82]
[1745454629561,11.52225244,150.08,149.99,3.9436]
[1745454629859,11.52225244,150.08,150.04,6.6618]
[1745454630960,6.661,150.07,150.04,6.6618]
[1745454634062,6.6613,150.06,150.03,6.6623]
[1745454634264,11.52225244,150.08,150.03,6.6623]
[1745454634464,11.52225244,150.08,150.01,25.84]
[1745454635061,6.661,150.07,150.03,6.6624]
[1745454636063,6.661,150.07,150.04,6.662]
[1745454636359,6.6612,150.06,150.01,25.84]
[1745454636564,11.52225244,150.08,150.01,25.84]
[1745454636768,11.52225244,150.08,150.03,6.6622]
[1745454637359,11.52225244,150.08,150.01,32.5031]
[1745454637562,11.52225244,150.06,150.01,32.5031]
[1745454637862,11.52225244,150.06,150.01,6.6631]
[1745454638265,6.6621,150.04,150.01,6.6631]
[1745454638970,6.6628,150.03,149.99,8.5575]
[1745454639170,11.52225244,150.06,149.99,1.8936]
[1745454639368,37.02225244,150.06,149.99,1.8936]
[1745454639870,6.6623,150.04,150.01,6.6631]
[1745454640165,25.5,150.06,149.94,479.56]
[1745454640468,37.02225244,150.06,149.96,11.52225244]
[1745454640663,37.02225244,150.06,149.97,3.8282]
[1745454640859,6.6619,150.05,150.02,6.6629]
[1745454641067,1.8976,150.07,150.0,11.52225244]
[1745454641564,8.5585,150.07,150.03,6.6622]
[1745454642871,8.5585,150.07,150.04,6.6619]
[1745454643172,6.6612,150.06,150.04,6.6619]
[1745454643372,6.6612,150.06,150.03,6.6622]
[1745454643872,6.6612,150.06,149.98,37.02225244]
[1745454644072,8.5583,150.07,149.98,37.02225244]
[1745454644272,1.8976,150.07,149.98,37.02225244]
[1745454644572,6.6615,150.06,150.03,6.6623]
[1745454644773,6.6615,150.06,149.98,37.02225244]
[1745454645073,6.6615,150.06,150.03,6.6623]
[1745454645268,6.6616,150.05,150.03,6.6623]
[1745454645566,1.8976,150.07,150.03,6.6623]
[1745454645773,6.6614,150.06,150.03,6.6623]
[1745454646074,6.6614,150.06,150.04,6.662]
[1745454646472,6.6614,150.06,149.98,37.02225244]
[1745454646673,6.6614,150.06,150.03,6.6622]
[1745454646975,6.6617,150.05,150.03,6.6622]
[1745454647273,14.05207937,150.05,150.03,6.6622]
[1745454647473,7.39037937,150.05,150.0,7.39037937]
[1745454647768,1.8976,150.07,150.04,7.39037937]
[1745454647976,1.8976,150.07,150.06,6.6612]
[1745454648473,1.8976,150.07,150.04,6.6618]
[1745454648677,7.39037937,150.06,150.02,7.39037937]
[1745454649177,8.5585,150.07,150.04,6.6618]
[1745454649475,14.05047937,150.09,150.02,25.5]
[1745454649676,7.39037937,150.09,150.02,25.5]
[1745454649975,7.39037937,150.09,150.03,7.39037937]
[1745454650674,14.05047937,150.09,150.06,6.6609]
[1745454651269,7.39037937,150.09,150.07,6.6607]
[1745454651476,7.39037937,150.09,150.03,7.39037937]
[1745454651877,14.05047937,150.09,150.05,6.6612]
[1745454652674,14.05047937,150.09,150.06,6.6611]
[1745454652975,6.6603,150.08,150.03,7.39037937]
[1745454653274,7.39037937,150.09,150.03,7.39037937]
[1745454653574,14.05047937,150.09,150.03,7.39037937]
[1745454654479,14.05047937,150.09,150.05,6.6613]
[1745454654770,7.39037937,150.07,150.05,6.6613]
[1745454655273,14.05117937,150.07,150.05,6.6613]
[1745454655576,14.05117937,150.07,150.04,6.6619]
[1745454655779,14.05117937,150.07,150.03,7.39037937]
[1745454656074,14.05117937,150.07,150.04,6.662]
[1745454656476,7.39037937,150.09,150.03,7.39037937]
[1745454656672,2.0044,150.12,150.07,7.39037937]
[1745454656871,2.0044,150.12,150.1,6.6591]
[1745454657074,6.6583,150.13,150.1,6.6591]
[1745454657273,6.6583,150.13,150.09,7.39037937]
[1745454657472,7.39037937,150.14,150.11,6.6586]
[1745454657671,7.39037937,150.12,150.03,29.5246]
[1745454657874,7.39037937,150.07,150.03,2.0612]
[1745454658080,7.39037937,150.07,150.04,6.6617]
[1745454658481,7.39037937,150.07,150.03,2.0612]
[1745454658782,7.39037937,150.09,150.04,7.39037937]
[1745454659177,7.39037937,150.09,150.05,6.6613]
[1745454659683,6.6603,150.08,150.04,14.05227937]
[1745454659882,7.39037937,150.09,150.03,2.0612]
[1745454660282,6.6608,150.07,150.04,6.6619]
[1745454660583,7.39037937,150.09,150.03,2.0612]
[1745454660785,6.6607,150.07,150.04,6.6619]
[1745454661789,6.6604,150.08,150.04,6.6619]
[1745454662087,7.39037937,150.09,150.04,6.6619]
[1745454662687,6.6604,150.08,150.04,6.6619]
[1745454662988,7.39037937,150.09,150.04,6.6619]
[1745454663190,6.662,150.05,150.02,7.39037937]
[1745454663888,6.662,150.05,150.02,14.05327937]
[1745454664286,6.662,150.05,150.02,6.6629]
[1745454664885,7.39037937,150.07,149.98,1.8997]
[1745454665093,27.44,150.07,149.98,1.8997]
[1745454665690,7.39037937,150.02,149.98,15.95467937]
[1745454665890,7.39037937,150.03,149.98,15.95467937]
[1745454666187,6.6633,150.02,149.98,15.95467937]
[1745454666587,7.39037937,150.04,149.99,6.6643]
[1745454666783,7.39037937,150.04,149.98,9.29007937]
[1745454666981,7.39037937,150.04,149.98,1.8997]
[1745454667188,7.39037937,150.02,149.98,1.8997]
[1745454667490,7.39037937,150.02,149.97,7.39037937]
[1745454667789,7.39037937,150.02,149.96,7.39037937]
[1745454667986,6.6641,150.0,149.96,7.39037937]
[1745454668189,7.39037937,150.02,149.96,7.39037937]
[1745454669290,6.6642,150.0,149.96,6.6653]
[1745454669485,6.6642,150.0,149.96,14.05567937]
[1745454669692,7.39037937,150.02,149.94,507.0]
[1745454669693,7.39037937,150.02,149.98,7.39037937]
[1745454669893,7.39037937,150.02,149.94,507.0]
[1745454670094,7.39037937,150.0,149.94,507.0]
[1745454670396,7.39037937,149.96,149.87,31.31207558]
[1745454670593,7.39037937,149.96,149.91,7.39037937]
[1745454670789,14.05637937,149.96,149.91,14.05787937]
[1745454670993,7.39037937,149.96,149.91,14.05787937]
[1745454671487,7.39037937,149.96,149.91,6.6675]
[1745454671690,7.39037937,149.96,149.91,7.39037937]
[1745454671893,34.85037937,149.99,149.93,7.39037937]
[1745454672094,7.39037937,150.0,149.95,7.39037937]
[1745454672293,7.39037937,150.0,149.95,14.05627937]
[1745454672497,14.05447937,150.0,149.95,14.05627937]
[1745454672690,7.39037937,150.0,149.95,7.39037937]
[1745454672897,7.39037937,150.0,149.96,6.6653]
[1745454673097,2.0682,150.01,149.97,7.39037937]
[1745454673301,13.61269771,150.06,149.97,11.54899771]
[1745454673595,2.0176,150.07,149.99,11.54899771]
[1745454673799,2.0176,150.07,150.0,6.6635]
[1745454674101,6.6612,150.06,150.0,27.46]
[1745454674499,2.0176,150.07,150.0,27.46]
[1745454674701,6.6614,150.06,150.0,27.46]
[1745454675000,2.0176,150.07,150.02,6.6626]
[1745454675301,6.6613,150.06,150.02,6.6626]
[1745454675502,2.0176,150.07,150.0,27.46]
[1745454676102,2.0176,150.07,150.02,6.6629]
[1745454676298,2.0176,150.07,150.0,27.46]
[1745454676699,2.0176,150.07,150.0,34.1236]
[1745454677191,2.0176,150.07,150.01,6.6632]
[1745454677389,2.0176,150.07,150.0,27.46]
[1745454677789,8.6786,150.07,150.03,6.6625]
[1745454677997,8.6786,150.07,150.01,11.54899771]
[1745454678693,8.6786,150.07,150.03,6.6622]
[1745454678893,11.54899771,150.04,149.89,62.77261003]
[1745454679104,11.54899771,150.0,149.89,74.32160774]
[1745454679303,27.46,149.99,149.89,74.32160774]
[1745454679992,27.46,149.99,149.89,62.77261003]
[1745454680201,6.6658,149.96,149.91,6.6677]
[1745454680398,11.54899771,150.03,149.93,11.54899771]
[1745454680702,6.6641,150.0,149.96,6.6655]
[1745454680901,27.46,150.02,149.95,11.54899771]
[1745454681197,27.46,150.04,149.96,1.9182]
[1745454681411,27.46,150.04,149.97,11.54899771]
[1745454681904,27.46,150.07,149.99,11.54899771]
[1745454682406,6.6616,150.05,150.01,6.6633]
[1745454682705,27.46,150.07,150.01,6.6633]
[1745454682906,6.6614,150.06,150.01,6.6633]
[1745454683104,6.6614,150.06,150.02,6.6629]
[1745454683402,27.46,150.07,149.99,11.54899771]
[1745454683604,27.46,150.07,150.02,6.6629]
[1745454683902,27.46,150.07,150.01,11.54899771]
[1745454684108,34.121,150.07,150.03,6.6624]
[1745454684406,27.46,150.07,150.0,1.9335]
[1745454685099,6.6615,150.06,150.0,1.9335]
[1745454685304,27.46,150.08,150.0,1.9335]
[1745454686112,6.6612,150.06,150.02,6.6626]
[1745454686406,17.52979771,150.12,150.01,11.54899771]
[1745454686607,6.6602,150.09,150.05,6.6612]
[1745454687008,27.46,150.11,150.03,13.47689771]
[1745454687308,27.46,150.13,150.07,11.54899771]
[1745454687702,6.6592,150.11,150.07,6.6605]
[1745454687900,27.46,150.13,150.06,27.46]
[1745454688106,11.54899771,150.12,150.06,27.46]
[1745454688311,11.54899771,150.12,150.03,13.47689771]
[1745454688510,6.6599,150.09,150.05,6.6613]
[1745454689810,11.54899771,150.1,150.03,1.9279]
[1745454690411,6.6608,150.07,150.03,8.59]
[1745454690612,11.54899771,150.1,150.03,1.9279]
[1745454691110,11.54899771,150.12,150.03,13.47689771]
[1745454692011,1.9292,150.13,150.05,11.54899771]
[1745454692511,6.6588,150.12,150.07,6.6604]
[1745454692712,6.6588,150.12,150.05,11.54899771]
[1745454692913,1.9292,150.13,150.05,11.54899771]
[1745454693113,1.9292,150.13,150.03,13.47689771]
[1745454693412,11.54899771,150.12,150.03,13.47689771]
[1745454693611,6.6595,150.1,150.03,13.47689771]
[1745454694213,6.6598,150.09,150.05,6.6612]
[1745454694811,6.6603,150.08,150.04,6.6619]
[1745454695610,6.6603,150.08,150.03,13.47689771]
[1745454695807,6.6599,150.09,150.05,6.6616]
[1745454696316,6.6596,150.1,150.06,6.6611]
[1745454696614,1.9292,150.13,150.05,11.54899771]
[1745454696914,6.6593,150.11,150.07,6.6603]
[1745454697318,6.6596,150.1,150.06,34.3409]
[1745454697909,1.9292,150.13,150.06,34.3409]
[1745454698114,6.6599,150.09,150.06,34.3409]
[1745454698316,11.54899771,150.12,150.03,41.15689771]
[1745454698615,6.6603,150.08,150.03,41.15689771]
[1745454699116,6.66,150.09,150.05,6.6615]
[1745454699415,6.66,150.09,150.03,41.15689771]
[1745454699609,11.54899771,150.12,150.03,41.15689771]
[1745454699610,6.6595,150.1,150.06,6.6608]
[1745454700011,11.54899771,150.12,150.06,6.6608]
[1745454700216,11.54899771,150.12,150.03,41.15689771]
[1745454700412,6.6599,150.09,150.05,6.6613]
[1745454700612,11.54899771,150.12,150.05,6.6613]
[1745454700811,6.6601,150.09,150.05,6.6613]
[1745454701012,6.6601,150.09,150.03,41.15689771]
[1745454701416,6.6601,150.09,150.06,6.6609]
[1745454701719,1.9292,150.13,150.03,41.15689771]
[1745454702213,6.6593,150.11,150.07,6.6606]
[1745454703213,6.6594,150.1,150.07,6.6606]
[1745454703717,6.6591,150.11,150.08,6.6601]
[1745454703915,1.9292,150.13,150.08,6.6601]
[1745454704513,6.6588,150.12,150.09,6.6598]
[1745454704711,1.9292,150.13,150.05,11.54899771]
[1745454704912,1.9292,150.13,150.07,11.54899771]
[1745454705116,27.46,150.14,150.07,39.22899771]
[1745454705318,27.68,150.17,150.07,39.22899771]
[1745454705616,6.6569,150.16,150.09,11.54899771]
[1745454705817,41.14319771,150.18,150.09,11.54899771]
[1745454706012,6.6589,150.12,150.08,6.66]
[1745454706211,11.54899771,150.14,150.08,6.66]
[1745454707217,6.6595,150.1,150.07,34.3406]
[1745454707816,39.22899771,150.14,150.07,27.68]
[1745454709115,39.22899771,150.14,150.09,6.6596]
[1745454709420,39.22899771,150.14,150.07,27.68]
[1745454709615,6.6583,150.13,150.07,27.68]
[1745454709922,39.22899771,150.14,150.07,27.68]
[1745454710216,6.6575,150.15,150.07,39.22899771]
[1745454710416,41.14319771,150.18,150.09,11.54899771]
[1745454710818,41.14319771,150.18,150.1,1.9759]
[1745454711318,6.6579,150.14,150.11,6.6587]
[1745454711818,6.6579,150.14,150.12,6.6584]
[1745454712022,41.14319771,150.18,150.1,1.9759]
[1745454712421,6.6569,150.16,150.11,27.68]
[1745454713023,6.6569,150.16,150.13,6.6578]
[1745454713419,6.6574,150.15,150.11,27.68]
[1745454713619,11.54899771,150.16,150.11,27.68]
[1745454713920,6.6578,150.14,150.11,27.68]
[1745454714123,11.54899771,150.16,150.11,34.3386]
[1745454714320,6.6579,150.14,150.11,34.3386]
[1745454714524,11.54899771,150.16,150.11,34.3386]
[1745454714714,11.54899771,150.16,150.11,27.68]
[1745454715122,11.54899771,150.14,150.07,27.66]
[1745454715318,11.54899771,150.14,150.08,6.6602]
[1745454715522,6.6592,150.11,150.08,6.6602]
[1745454715722,11.54899771,150.14,150.07,27.66]
[1745454716019,6.6587,150.12,150.07,27.66]
[1745454716424,11.54899771,150.14,150.1,6.6593]
[1745454716623,6.6583,150.13,150.1,6.6593]
[1745454716824,6.6583,150.13,150.07,27.66]
[1745454717328,6.6578,150.14,150.07,39.20899771]
[1745454717525,11.54899771,150.16,150.12,6.6585]
[1745454717918,6.6572,150.15,150.12,6.6585]
[1745454718225,11.54899771,150.16,150.12,6.6585]
[1745454718426,11.54899771,150.16,150.1,6.6589]
[1745454718620,11.54899771,150.16,150.08,1.915]
[1745454719025,6.6584,150.13,150.1,6.659]
[1745454719228,6.6584,150.13,150.08,1.915]
[1745454719528,11.54899771,150.16,150.08,1.915]
[1745454720526,1.9449,150.17,150.06,2.0413]
[1745454720527,11.54899771,150.14,150.06,29.7013]
[1745454720727,39.20899771,150.14,150.06,29.7013]
[1745454721027,6.6606,150.08,150.06,27.66]
[1745454721227,6.6606,150.08,150.03,29.5297]
[1745454721424,1.9626,150.11,150.03,41.07869771]
[1745454721629,39.20899771,150.14,150.05,11.54899771]
[1745454721929,15.39759771,150.16,150.05,11.54899771]
[1745454722125,13.51159771,150.16,150.07,11.54899771]
[1745454722430,13.51159771,150.16,150.07,39.20899771]
[1745454723231,6.6574,150.15,150.12,6.6582]
[1745454723730,8.6194,150.16,150.09,11.54899771]
[1745454724029,8.6194,150.16,150.09,13.43109771]
[1745454724232,8.6193,150.16,150.13,6.6578]
[1745454724627,1.9626,150.16,150.11,27.66]
[1745454725034,519.00899771,150.2,150.11,27.66]
[1745454725326,1.8939,150.19,150.11,27.66]
[1745454725532,6.6571,150.16,150.12,6.6582]
[1745454725726,11.54899771,150.18,150.11,27.66]
[1745454726132,6.6583,150.13,150.1,6.6592]
[1745454726636,6.6578,150.14,150.11,6.6588]
[1745454726834,11.54899771,150.16,150.11,6.6588]
[1745454727036,11.54899771,150.16,150.08,29.1506]
[1745454727235,11.54899771,150.14,150.06,27.1]
[1745454727438,11.54899771,150.12,150.04,365.0]
[1745454727734,1.9683,150.11,150.03,38.64899771]
[1745454727936,6.6596,150.1,150.03,38.64899771]
[1745454728632,1.9683,150.11,150.03,38.64899771]
[1745454729230,8.6275,150.11,150.08,6.66]
[1745454729838,6.6592,150.11,150.08,6.66]
[1745454730334,6.6592,150.11,150.03,27.1]
[1745454730636,1.9683,150.14,150.05,18.46144154]
[1745454730937,6.6582,150.13,150.1,6.6592]
[1745454731334,1.9683,150.14,150.07,27.1]
[1745454731537,6.6587,150.12,150.09,6.6596]
[1745454731736,1.9683,150.14,150.07,27.1]
[1745454732038,6.6591,150.11,150.08,6.6599]
[1745454732342,1.9683,150.14,150.08,6.6599]
[1745454732532,6.6592,150.11,150.08,6.6599]
[1745454734040,1.9683,150.14,150.02,1.9307]
[1745454734340,6.6604,150.08,150.02,29.0307]
[1745454734539,27.1,150.11,150.02,29.0307]
[1745454735240,6.6617,150.06,150.03,6.6626]
[1745454735637,6.6625,150.04,150.01,6.6633]
[1745454736039,27.12,150.07,149.99,28.994]
[1745454736230,18.46144154,150.06,149.99,27.12]
[1745454736430,18.46144154,150.06,149.97,25.46352876]
[1745454737342,20.44024154,150.06,149.97,25.46352876]
[1745454737538,20.44024154,150.06,149.98,14.51107625]
[1745454737742,20.44024154,150.06,149.98,7.84657625]
[1745454738144,6.6623,150.04,149.97,1.9238]
[1745454739041,6.6623,150.04,150.0,6.6635]
[1745454740247,6.6618,150.05,149.97,1.9238]
[1745454740541,27.12,150.06,149.97,1.9238]
[1745454740945,6.6621,150.04,150.01,6.6631]
[1745454742735,27.12,150.06,149.97,1.9238]
[1745454742941,2.0661,150.08,149.99,18.46144154]
[1745454743242,2.0661,150.08,150.03,6.6623]
[1745454743438,2.0661,150.08,150.0,27.12]
[1745454743636,2.0661,150.08,150.01,6.6633]
[1745454744245,2.0661,150.08,150.0,33.7838]
[1745454744442,2.0661,150.08,150.0,6.6638]
[1745454744745,6.6622,150.04,150.01,6.6633]
[1745454745750,2.0661,150.08,149.97,31.017]
[1745454745942,2.0661,150.08,149.97,29.0438]
[1745454746441,6.6634,150.02,149.99,6.6642]
[1745454746642,27.12,150.05,149.99,6.6642]
[1745454747546,27.12,150.05,150.0,6.6638]
[1745454747748,6.6628,150.03,150.0,6.6638]
[1745454748251,6.6623,150.04,150.01,6.6633]
[1745454748547,27.12,150.05,149.97,29.0438]
[1745454748848,6.6624,150.04,150.01,6.6633]
[1745454749144,2.0661,150.08,149.97,1.9238]
[1745454749340,2.0095,150.1,149.97,1.9238]
[1745454749341,6.6601,150.09,150.06,6.6612]
[1745454751953,6.6601,150.09,150.05,6.6615]
[1745454752249,6.6603,150.08,150.04,11.53876319]
[1745454753150,27.12,150.1,150.03,40.65026319]
[1745454753357,11.53876319,150.09,150.03,27.12]
[1745454753661,11.53876319,150.09,150.0,27.12]
[1745454753862,6.6629,150.03,150.0,27.12]
[1745454754350,6.6623,150.04,150.0,27.12]
[1745454754549,1.9715,150.08,150.0,27.12]
[1745454754852,6.6632,150.02,150.0,27.12]
[1745454755449,26.46,150.06,149.98,11.53876319]
[1745454755855,26.46,150.06,149.97,30.4047]
[1745454756056,11.53876319,150.05,149.97,30.4047]
[1745454756452,11.53876319,150.05,149.97,26.46]
[1745454756647,11.53876319,150.03,149.94,517.55876319]
[1745454757350,1.987,150.02,149.94,524.22506319]
[1745454757859,6.6651,149.98,149.94,524.22506319]
[1745454758161,1.987,150.02,149.94,517.55876319]
[1745454759155,6.6656,149.97,149.94,37.99876319]
[1745454759654,6.666,149.96,149.94,37.99876319]
[1745454759862,28.447,150.02,149.94,37.99876319]
[1745454760359,28.447,150.02,149.94,44.66526319]
[1745454761363,28.447,150.02,149.95,6.6661]
[1745454761558,6.6642,150.0,149.95,6.6661]
[1745454761866,6.6642,150.0,149.96,6.6656]
[1745454762463,6.6635,150.01,149.97,6.6651]
[1745454762664,11.53876319,150.07,149.96,11.53876319]
[1745454762962,26.48,150.06,149.98,11.53876319]
[1745454763468,6.6632,150.02,149.98,18.20326319]
[1745454763765,26.48,150.06,149.98,11.53876319]
[1745454764059,6.663,150.02,149.98,11.53876319]
[1745454764261,26.48,150.06,149.98,11.53876319]
[1745454764461,26.48,150.06,149.97,2.0507]
[1745454764863,26.48,150.06,149.98,6.6644]
[1745454765064,26.48,150.06,149.97,2.0507]
[1745454765664,6.6633,150.02,149.99,6.6643]
[1745454766165,26.48,150.06,149.97,2.0507]
[1745454766362,6.6628,150.03,150.0,6.6639]
[1745454766560,26.48,150.06,149.98,38.01876319]
[1745454767063,6.6622,150.04,150.01,6.6631]
[1745454767366,26.48,150.06,150.0,11.53876319]
[1745454768468,6.6615,150.06,150.0,11.53876319]
[1745454769167,6.6617,150.05,150.0,11.53876319]
[1745454769865,6.6617,150.05,150.02,6.6628]
[1745454770066,6.6613,150.06,150.0,11.53876319]
[1745454770566,6.6613,150.06,150.03,6.6625]
[1745454770967,6.6618,150.05,150.02,6.6628]
[1745454771468,26.48,150.08,150.0,11.53876319]
[1745454772862,6.6624,150.04,150.0,18.20246319]
[1745454773367,6.6627,150.03,150.0,18.20246319]
[1745454774170,6.663,150.02,150.0,11.53876319]
[1745454774870,6.6639,150.0,149.99,1.8931]
[1745454775869,6.6639,150.0,149.97,35.1959]
[1745454776064,6.6639,150.0,149.97,28.5307]
[1745454777366,6.6639,150.0,149.97,35.1957]
[1745454777863,6.6645,149.99,149.97,28.5307]
[1745454778072,26.48,150.04,149.97,2.0507]
[1745454778471,6.6642,150.0,149.97,2.0507]
[1745454778973,26.48,150.04,149.97,2.0507]
[1745454779772,6.6637,150.01,149.97,2.0507]
[1745454780071,26.48,150.04,149.97,2.0507]
[1745454780465,26.48,150.04,149.96,11.53876319]
[1745454780674,11.53876319,150.03,149.94,13.53866319]
[1745454780970,6.6651,149.98,149.95,6.6661]
[1745454781360,11.53876319,150.03,149.94,1.9999]
[1745454781561,6.6661,149.95,149.92,6.6672]
[1745454782169,6.6659,149.96,149.93,6.667]
[1745454782364,13.42416319,149.99,149.91,1.9313]
[1745454782569,11.53876319,149.97,149.89,1.9531]
[1745454782869,11.53876319,149.95,149.85,82.10184252]
[1745454783170,11.53876319,149.88,149.85,82.10184252]
[1745454783375,8.6122,149.87,149.85,82.10184252]
[1745454783671,1.9425,149.87,149.85,82.10184252]
[1745454783871,11.53876319,149.86,149.82,156.6743627]
[1745454784266,6.6706,149.85,149.82,156.6743627]